fUSD/lending_fUSD_20260601
["ID","MTS","AMOUNT","RATE_DAILY","PERIOD"]
[423660157,1780283445000,-250.0,0.00037373,2]
[423660153,1780283445000,-5000.0,0.00037373,2]
[423660159,1780283445000,-250.0,0.00037373,2]
[423660165,1780283445000,-3551.0,0.00037392,2]
[423660168,1780283445000,-1042.51040063,0.00037406,20]
[423660169,1780283445000,-1062.59701236,0.00037406,20]
[423660158,1780283445000,-250.0,0.00037373,2]
[423660167,1780283445000,-350.0,0.00037392,2]
[423660188,1780283445000,-8000.0,0.000375,120]
[423660191,1780283445000,-3336.74,0.00037525,2]
[423660195,1780283445000,-10000.0,0.00037532,2]
[423660224,1780283445000,-940.5312,0.00037945,30]
[423660227,1780283445000,-2000.0,0.00037999,48]
[423660226,1780283445000,-2000.0,0.00037999,20]
[423660225,1780283445000,-2000.0,0.00037999,6]
[423660231,1780283445000,-166.13,0.00038014,120]
[423660229,1780283445000,-399.52,0.00038,14]
[423660230,1780283445000,-219.0,0.00038,120]
[423660232,1780283445000,-2000.0,0.00038067,120]
[423660233,1780283445000,-2000.0,0.00038099,33]
[423660234,1780283445000,-282.37373032,0.000381,33]
[423660238,1780283445000,-1125.67147068,0.00038122,20]
[423660235,1780283445000,-1106.55883057,0.00038122,20]
[423660237,1780283445000,-1003.37333861,0.00038122,20]
[423660239,1780283445000,-1140.52832951,0.00038122,20]
[423660240,1780283445000,-1086.61693557,0.00038122,20]
[423660243,1780283445000,-157.99575143,0.0003813,2]
[423660248,1780283445000,-5000.0,0.00038161,2]
[423660241,1780283445000,-1107.65987423,0.00038122,20]
[423660246,1780283445000,-5000.0,0.00038161,2]
[423660244,1780283445000,-500.0,0.00038134,30]
[423660242,1780283445000,-2000.0,0.00038128,120]
[423660249,1780283445000,-5000.0,0.00038161,2]
[423660245,1780283445000,-5037.07431408,0.00038161,2]
[423660247,1780283445000,-5000.0,0.00038161,2]
[423660194,1780283445000,-2000.0,0.00037532,2]
[423660228,1780283445000,-10000.0,0.00038,120]
[423660222,1780283445000,-500.0,0.00037863,60]
[423660236,1780283445000,-1048.40017959,0.00038122,20]
[423660220,1780283445000,-507.50100678,0.00037863,60]
[423660197,1780283445000,-19688.0,0.000376,30]
[423660219,1780283445000,-157.99575143,0.00037856,2]
[423660199,1780283445000,-2000.0,0.00037671,120]
[423660200,1780283445000,-150.0,0.00037694,2]
[423660204,1780283445000,-5000.0,0.00037771,2]
[423660202,1780283445000,-5000.0,0.00037771,2]
[423660203,1780283445000,-5000.0,0.00037771,2]
[423660201,1780283445000,-501.0,0.0003771,13]
[423660196,1780283445000,-157.99575143,0.00037582,2]
[423660205,1780283445000,-5000.0,0.00037771,2]
[423660211,1780283445000,-250.0,0.00037771,2]
[423660208,1780283445000,-250.0,0.00037771,2]
[423660212,1780283445000,-250.0,0.00037771,2]
[423660198,1780283445000,-1307.293,0.00037629,2]
[423660214,1780283445000,-350.0,0.00037808,5]
[423660223,1780283445000,-2000.0,0.000379,120]
[423660221,1780283445000,-1200.0,0.00037863,60]
[423660217,1780283445000,-234.52,0.0003784,86]
[423660218,1780283445000,-164.0,0.00037854,11]
[423660215,1780283445000,-2000.0,0.00037815,13]
[423660213,1780283445000,-250.0,0.00037771,2]
[423660206,1780283445000,-5000.0,0.00037771,2]
[423660207,1780283445000,-5000.0,0.00037771,2]
[423660209,1780283445000,-250.0,0.00037771,2]
[423660210,1780283445000,-250.0,0.00037771,2]
[423660216,1780283445000,-2000.0,0.00037839,86]
[423660305,1780283446000,-2281.16,0.00038356,2]
[423660286,1780283446000,-500.0,0.00038356,2]
[423660296,1780283446000,-500.0,0.00038356,2]
[423660288,1780283446000,-336.89395946,0.00038356,2]
[423660291,1780283446000,-500.0,0.00038356,2]
[423660294,1780283446000,-500.0,0.00038356,2]
[423660285,1780283446000,-500.0,0.00038356,2]
[423660283,1780283446000,-500.0,0.00038356,2]
[423660292,1780283446000,-500.0,0.00038356,2]
[423660282,1780283446000,-500.0,0.00038356,2]
[423660293,1780283446000,-500.0,0.00038356,2]
[423660295,1780283446000,-500.0,0.00038356,2]
[423660289,1780283446000,-500.0,0.00038356,2]
[423660306,1780283446000,-2281.16,0.00038356,2]
[423660308,1780283446000,-2281.16,0.00038356,2]
[423660299,1780283446000,-500.0,0.00038356,2]
[423660297,1780283446000,-500.0,0.00038356,2]
[423660304,1780283446000,-2281.16,0.00038356,2]
[423660301,1780283446000,-315.20596294,0.00038356,2]
[423660298,1780283446000,-500.0,0.00038356,2]
[423660303,1780283446000,-2281.16,0.00038356,2]
[423660300,1780283446000,-500.0,0.00038356,2]
[423660302,1780283446000,-595.54289715,0.00038356,2]
[423660317,1780283446000,-151.0,0.00038356,30]
[423660318,1780283446000,-151.0,0.00038356,30]
[423660319,1780283446000,-756.37702,0.00038356,30]
[423660309,1780283446000,-2281.16,0.00038356,2]
[423660287,1780283446000,-500.0,0.00038356,2]
[423660307,1780283446000,-2281.16,0.00038356,2]
[423660284,1780283446000,-500.0,0.00038356,2]
[423660310,1780283446000,-2281.16,0.00038356,2]
[423660290,1780283446000,-500.0,0.00038356,2]
[423660251,1780283446000,-5000.0,0.00038169,2]
[423660250,1780283446000,-5000.0,0.00038169,2]
[423660264,1780283446000,-1759.5,0.00038329,120]
[423660253,1780283446000,-5000.0,0.00038169,2]
[423660263,1780283446000,-10075.24109283,0.0003832,2]
[423660266,1780283446000,-1759.5,0.00038329,120]
[423660252,1780283446000,-5000.0,0.00038169,2]
[423660254,1780283446000,-5000.0,0.00038169,2]
[423660256,1780283446000,-250.0,0.00038169,2]
[423660255,1780283446000,-250.0,0.00038169,2]
[423660262,1780283446000,-501.0,0.00038266,14]
[423660257,1780283446000,-250.0,0.00038169,2]
[423660260,1780283446000,-350.0,0.00038178,4]
[423660258,1780283446000,-250.0,0.00038169,2]
[423660259,1780283446000,-250.0,0.00038169,2]
[423660261,1780283446000,-164.0,0.00038232,11]
[423660267,1780283446000,-1858.5,0.00038329,120]
[423660272,1780283446000,-2566.0,0.00038356,5]
[423660270,1780283446000,-1382.5,0.00038329,120]
[423660271,1780283446000,-259.35382038,0.00038336,2]
[423660269,1780283446000,-1382.5,0.00038329,120]
[423660277,1780283446000,-500.0,0.00038356,2]
[423660274,1780283446000,-500.0,0.00038356,2]
[423660275,1780283446000,-500.0,0.00038356,2]
[423660276,1780283446000,-500.0,0.00038356,2]
[423660268,1780283446000,-1858.5,0.00038329,120]
[423660280,1780283446000,-500.0,0.00038356,2]
[423660279,1780283446000,-500.0,0.00038356,2]
[423660278,1780283446000,-500.0,0.00038356,2]
[423660281,1780283446000,-500.0,0.00038356,2]
[423660312,1780283446000,-151.0,0.00038356,30]
[423660373,1780283446000,-1250.15,0.000386,2]
[423660314,1780283446000,-151.0,0.00038356,30]
[423660350,1780283446000,-2422.20738274,0.000385,10]
[423660351,1780283446000,-2422.20738274,0.000385,10]
[423660357,1780283446000,-500.0,0.00038504,7]
[423660352,1780283446000,-2422.20738274,0.000385,10]
[423660355,1780283446000,-2422.20738274,0.000385,10]
[423660354,1780283446000,-2422.20738274,0.000385,10]
[423660356,1780283446000,-2422.20738274,0.000385,10]
[423660353,1780283446000,-2422.20738274,0.000385,10]
[423660365,1780283446000,-5000.0,0.00038566,2]
[423660359,1780283446000,-500.0,0.00038504,7]
[423660366,1780283446000,-5000.0,0.00038566,2]
[423660367,1780283446000,-5000.0,0.00038566,2]
[423660358,1780283446000,-500.0,0.00038504,7]
[423660347,1780283446000,-2422.20738274,0.000385,10]
[423660368,1780283446000,-250.0,0.00038566,2]
[423660361,1780283446000,-526.88,0.00038504,7]
[423660360,1780283446000,-500.0,0.00038504,7]
[423660362,1780283446000,-2319.0,0.00038557,11]
[423660363,1780283446000,-2319.0,0.00038558,11]
[423660364,1780283446000,-5000.0,0.00038566,2]
[423660370,1780283446000,-250.0,0.00038566,2]
[423660375,1780283446000,-1000.0,0.00038652,120]
[423660377,1780283446000,-157.99575143,0.00038678,2]
[423660376,1780283446000,-2319.0,0.00038659,11]
[423660372,1780283446000,-2000.0,0.00038584,120]
[423660374,1780283446000,-4872.0049,0.0003864,30]
[423660371,1780283446000,-250.0,0.00038566,2]
[423660311,1780283446000,-151.0,0.00038356,30]
[423660369,1780283446000,-250.0,0.00038566,2]
[423660348,1780283446000,-2422.20738274,0.000385,10]
[423660378,1780283446000,-1200.0,0.00038685,60]
[423660349,1780283446000,-2422.20738274,0.000385,10]
[423660315,1780283446000,-151.0,0.00038356,30]
[423660313,1780283446000,-151.0,0.00038356,30]
[423660316,1780283446000,-756.37702,0.00038356,30]
[423660326,1780283446000,-151.0,0.00038356,30]
[423660321,1780283446000,-756.37702,0.00038356,30]
[423660323,1780283446000,-756.37702,0.00038356,30]
[423660330,1780283446000,-273.73,0.000384,120]
[423660328,1780283446000,-2000.0,0.00038379,105]
[423660346,1780283446000,-2422.20738274,0.000385,10]
[423660322,1780283446000,-245.129018,0.00038356,30]
[423660320,1780283446000,-151.0,0.00038356,30]
[423660327,1780283446000,-2000.0,0.00038356,120]
[423660329,1780283446000,-234.52,0.0003838,105]
[423660331,1780283446000,-219.0,0.000384,120]
[423660324,1780283446000,-151.0,0.00038356,30]
[423660332,1780283446000,-157.99575143,0.00038404,2]
[423660342,1780283446000,-392.11505407,0.000385,30]
[423660325,1780283446000,-151.0,0.00038356,30]
[423660341,1780283446000,-164.12,0.000385,21]
[423660337,1780283446000,-2000.0,0.00038499,21]
[423660343,1780283446000,-201.77170717,0.000385,30]
[423660333,1780283446000,-150.0,0.0003842,30]
[423660339,1780283446000,-164.12,0.000385,21]
[423660345,1780283446000,-2422.20738274,0.000385,10]
[423660340,1780283446000,-164.12,0.000385,21]
[423660344,1780283446000,-2422.20738276,0.000385,10]
[423660334,1780283446000,-2853.12610694,0.0003842,30]
[423660335,1780283446000,-150.0,0.0003842,30]
[423660336,1780283446000,-1705.78513539,0.0003842,30]
[423660338,1780283446000,-164.12,0.000385,21]
[423660419,1780283447000,-1489.75475017,0.00039094,2]
[423660418,1780283447000,-1435.60668963,0.00039094,2]
[423660422,1780283447000,-399.52,0.000391,14]
[423660424,1780283447000,-89431.0,0.000391,7]
[423660417,1780283447000,-1515.64034568,0.00039094,2]
[423660409,1780283447000,-544.0,0.00039,120]
[423660415,1780283447000,-2000.0,0.0003904,56]
[423660413,1780283447000,-678.0,0.00039026,5]
[423660411,1780283447000,-543.6777,0.00039,30]
[423660412,1780283447000,-1000.0,0.00039008,90]
[423660408,1780283447000,-2500.0,0.00039,30]
[423660410,1780283447000,-2500.0,0.00039,30]
[423660423,1780283447000,-480.579937,0.000391,2]
[423660437,1780283447000,-2000.0,0.00039199,28]
[423660421,1780283447000,-2000.0,0.00039099,9]
[423660425,1780283447000,-356.908388,0.000391,2]
[423660426,1780283447000,-344.908386,0.000391,2]
[423660429,1780283447000,-326.949221,0.00039109,15]
[423660427,1780283447000,-341.908386,0.000391,2]
[423660428,1780283447000,-369.9498276,0.00039105,4]
[423660430,1780283447000,-3299.07571999,0.00039116,2]
[423660432,1780283447000,-2000.0,0.00039142,57]
[423660442,1780283447000,-7814.9173587,0.000392,7]
[423660443,1780283447000,-311.944246,0.000392,2]
[423660444,1780283447000,-305.944246,0.000392,2]
[423660435,1780283447000,-1842.51208753,0.00039188,120]
[423660414,1780283447000,-2000.0,0.00039029,5]
[423660420,1780283447000,-2000.0,0.00039096,90]
[423660407,1780283447000,-2500.0,0.00039,30]
[423660391,1780283447000,-261.559377,0.00038911,15]
[423660416,1780283447000,-2000.0,0.00039041,120]
[423660436,1780283447000,-387.0,0.00039191,2]
[423660379,1780283447000,-350.0,0.00038767,5]
[423660380,1780283447000,-2000.0,0.00038781,120]
[423660382,1780283447000,-4751.31497215,0.000388,15]
[423660381,1780283447000,-875.96774603,0.00038795,7]
[423660384,1780283447000,-219.0,0.000388,120]
[423660383,1780283447000,-19688.0,0.000388,30]
[423660388,1780283447000,-1250.15,0.00038854,2]
[423660385,1780283447000,-2000.0,0.00038813,120]
[423660390,1780283447000,-10337.45484619,0.000389,120]
[423660386,1780283447000,-501.0,0.00038822,14]
[423660387,1780283447000,-558.52902348,0.00038849,120]
[423660389,1780283447000,-164.0,0.00038865,11]
[423660392,1780283447000,-2000.0,0.00038919,116]
[423660393,1780283447000,-234.53,0.0003892,116]
[423660394,1780283447000,-157.99575143,0.00038952,2]
[423660395,1780283447000,-5000.0,0.00038964,2]
[423660397,1780283447000,-5000.0,0.00038964,2]
[423660396,1780283447000,-5000.0,0.00038964,2]
[423660400,1780283447000,-250.0,0.00038964,2]
[423660403,1780283447000,-1513.6240551,0.00039,120]
[423660402,1780283447000,-2000.0,0.00038999,22]
[423660398,1780283447000,-250.0,0.00038964,2]
[423660401,1780283447000,-157.88,0.0003899,120]
[423660399,1780283447000,-250.0,0.00038964,2]
[423660404,1780283447000,-160.0,0.00039,22]
[423660406,1780283447000,-2500.0,0.00039,30]
[423660405,1780283447000,-3297.59881327,0.00039,2]
[423660431,1780283447000,-151.0,0.00039128,4]
[423660434,1780283447000,-200.0,0.00039187,20]
[423660439,1780283447000,-287.0,0.000392,23]
[423660470,1780283447000,-3000.0,0.00039303,2]
[423660475,1780283447000,-3000.0,0.00039303,2]
[423660479,1780283447000,-3000.0,0.00039303,2]
[423660476,1780283447000,-3000.0,0.00039303,2]
[423660474,1780283447000,-3000.0,0.00039303,2]
[423660477,1780283447000,-3000.0,0.00039303,2]
[423660478,1780283447000,-3000.0,0.00039303,2]
[423660480,1780283447000,-2137.44,0.00039303,2]
[423660481,1780283447000,-320.0,0.00039305,59]
[423660493,1780283447000,-5000.0,0.00039361,2]
[423660483,1780283447000,-212.64,0.00039315,59]
[423660485,1780283447000,-160.27769402,0.00039332,120]
[423660484,1780283447000,-374.0,0.00039328,2]
[423660473,1780283447000,-3000.0,0.00039303,2]
[423660482,1780283447000,-2000.0,0.00039314,59]
[423660487,1780283447000,-222.3114234,0.00039332,120]
[423660490,1780283447000,-388.0,0.00039361,2]
[423660491,1780283447000,-2000.0,0.00039361,7]
[423660488,1780283447000,-178.106587,0.00039349,120]
[423660486,1780283447000,-229.74387908,0.00039332,120]
[423660492,1780283447000,-5000.0,0.00039361,2]
[423660495,1780283447000,-250.0,0.00039361,2]
[423660494,1780283447000,-250.0,0.00039361,2]
[423660497,1780283447000,-420.0,0.00039365,2]
[423660500,1780283447000,-3202.0,0.00039379,120]
[423660496,1780283447000,-1000.0,0.00039362,90]
[423660433,1780283447000,-440.78966585,0.00039164,2]
[423660498,1780283447000,-2000.0,0.00039367,4]
[423660489,1780283447000,-278.31429005,0.00039353,120]
[423660472,1780283447000,-3000.0,0.00039303,2]
[423660499,1780283447000,-501.0,0.00039379,15]
[423660465,1780283447000,-1000.0,0.00039292,90]
[423660440,1780283447000,-287.0,0.000392,23]
[423660438,1780283447000,-7194.09,0.000392,2]
[423660441,1780283447000,-500.65,0.000392,11]
[423660446,1780283447000,-344.483088,0.000392,2]
[423660456,1780283447000,-448.0,0.00039238,2]
[423660445,1780283447000,-171.95,0.000392,120]
[423660448,1780283447000,-329.483087,0.000392,2]
[423660471,1780283447000,-3000.0,0.00039303,2]
[423660449,1780283447000,-335.483087,0.000392,2]
[423660455,1780283447000,-1842.51208753,0.00039238,120]
[423660454,1780283447000,-2000.0,0.00039236,58]
[423660452,1780283447000,-157.99575143,0.00039226,2]
[423660453,1780283447000,-420.0,0.00039234,2]
[423660450,1780283447000,-155.16,0.00039209,120]
[423660451,1780283447000,-2000.0,0.00039218,11]
[423660447,1780283447000,-332.483087,0.000392,2]
[423660459,1780283447000,-387.0,0.00039264,2]
[423660461,1780283447000,-20841.81055714,0.00039282,2]
[423660464,1780283447000,-350.0,0.0003929,7]
[423660460,1780283447000,-2000.0,0.00039269,120]
[423660468,1780283447000,-12000.0,0.000393,30]
[423660462,1780283447000,-412.0,0.00039285,2]
[423660467,1780283447000,-178.106587,0.000393,120]
[423660463,1780283447000,-320.0,0.00039288,59]
[423660466,1780283447000,-2500.0,0.00039299,30]
[423660457,1780283447000,-412.0,0.00039249,2]
[423660469,1780283447000,-219.0,0.000393,120]
[423660458,1780283447000,-387.0,0.00039254,2]
[423660543,1780283448000,-2000.0,0.00039499,10]
[423660540,1780283448000,-2000.0,0.00039498,47]
[423660538,1780283448000,-178.37,0.00039496,30]
[423660539,1780283448000,-2000.0,0.00039498,120]
[423660534,1780283448000,-2000.0,0.00039492,14]
[423660537,1780283448000,-473.43144446,0.00039496,14]
[423660535,1780283448000,-2000.0,0.00039495,120]
[423660536,1780283448000,-800.0,0.00039496,14]
[423660532,1780283448000,-487.0,0.00039489,2]
[423660531,1780283448000,-234.53,0.0003947,120]
[423660533,1780283448000,-2000.0,0.00039492,3]
[423660542,1780283448000,-188.45645101,0.00039499,120]
[423660554,1780283448000,-4297.41589114,0.00039499,2]
[423660541,1780283448000,-656.55423328,0.00039499,120]
[423660546,1780283448000,-2000.0,0.00039499,75]
[423660548,1780283448000,-2000.0,0.00039499,16]
[423660545,1780283448000,-2000.0,0.00039499,18]
[423660547,1780283448000,-2000.0,0.00039499,23]
[423660552,1780283448000,-4297.31,0.00039499,2]
[423660556,1780283448000,-499.0,0.000395,120]
[423660549,1780283448000,-2000.0,0.00039499,119]
[423660553,1780283448000,-4297.31,0.00039499,2]
[423660550,1780283448000,-4297.31,0.00039499,2]
[423660557,1780283448000,-466.0,0.000395,120]
[423660555,1780283448000,-152.0,0.000395,120]
[423660528,1780283448000,-1000.0,0.00039457,90]
[423660544,1780283448000,-2000.0,0.00039499,40]
[423660529,1780283448000,-314.0,0.00039463,2]
[423660516,1780283448000,-10000.0,0.00039404,2]
[423660526,1780283448000,-2727.46503765,0.00039452,120]
[423660551,1780283448000,-4297.31,0.00039499,2]
[423660505,1780283448000,-150.0,0.000394,30]
[423660501,1780283448000,-2868.0,0.00039379,120]
[423660502,1780283448000,-379.0,0.00039381,2]
[423660503,1780283448000,-554.01773814,0.00039399,90]
[423660504,1780283448000,-160.0,0.000394,23]
[423660507,1780283448000,-806.73057378,0.000394,2]
[423660518,1780283448000,-10295.9774,0.00039404,2]
[423660506,1780283448000,-500.0,0.000394,11]
[423660509,1780283448000,-274.617107,0.000394,2]
[423660517,1780283448000,-5000.0,0.00039404,120]
[423660508,1780283448000,-200.0,0.000394,10]
[423660525,1780283448000,-2000.0,0.00039451,31]
[423660510,1780283448000,-2305.8186173,0.000394,2]
[423660513,1780283448000,-295.207188,0.000394,2]
[423660514,1780283448000,-5561.0325296,0.000394,2]
[423660512,1780283448000,-301.207189,0.000394,2]
[423660515,1780283448000,-420.0,0.00039404,2]
[423660519,1780283448000,-436.0,0.00039407,2]
[423660521,1780283448000,-163.0,0.0003943,120]
[423660522,1780283448000,-412.0,0.0003944,2]
[423660524,1780283448000,-387.0,0.00039447,2]
[423660530,1780283448000,-408.686527,0.00039465,15]
[423660523,1780283448000,-1842.51208753,0.0003944,120]
[423660520,1780283448000,-2000.0,0.00039417,15]
[423660527,1780283448000,-412.0,0.00039456,2]
[423660511,1780283448000,-1297.87657761,0.000394,2]
[423660558,1780283448000,-156.0,0.000395,120]
[423660607,1780283448000,-3598.87,0.000395,120]
[423660561,1780283448000,-181.0,0.000395,120]
[423660587,1780283448000,-500.0,0.000395,120]
[423660588,1780283448000,-500.0,0.000395,120]
[423660589,1780283448000,-211.55805362,0.000395,120]
[423660590,1780283448000,-3598.87,0.000395,120]
[423660592,1780283448000,-3598.87,0.000395,120]
[423660597,1780283448000,-3598.87,0.000395,120]
[423660615,1780283448000,-1039776.74930465,0.000395,30]
[423660608,1780283448000,-3598.87,0.000395,120]
[423660609,1780283448000,-3598.87,0.000395,120]
[423660598,1780283448000,-3598.87,0.000395,120]
[423660596,1780283448000,-3598.87,0.000395,120]
[423660599,1780283448000,-3598.87,0.000395,120]
[423660591,1780283448000,-3598.87,0.000395,120]
[423660601,1780283448000,-3598.87,0.000395,120]
[423660600,1780283448000,-3598.87,0.000395,120]
[423660605,1780283448000,-3598.87,0.000395,120]
[423660604,1780283448000,-3598.87,0.000395,120]
[423660606,1780283448000,-3598.87,0.000395,120]
[423660610,1780283448000,-3598.87,0.000395,120]
[423660613,1780283448000,-3599.01002812,0.000395,120]
[423660612,1780283448000,-3598.87,0.000395,120]
[423660611,1780283448000,-3598.87,0.000395,120]
[423660614,1780283448000,-1401.97516942,0.000395,120]
[423660617,1780283448000,-746356.63179656,0.000395,30]
[423660616,1780283448000,-5514.6563949,0.000395,120]
[423660559,1780283448000,-161.0,0.000395,120]
[423660602,1780283448000,-3598.87,0.000395,120]
[423660593,1780283448000,-3598.87,0.000395,120]
[423660603,1780283448000,-3598.87,0.000395,120]
[423660585,1780283448000,-500.0,0.000395,120]
[423660560,1780283448000,-1233.0,0.000395,120]
[423660595,1780283448000,-3598.87,0.000395,120]
[423660566,1780283448000,-43622.00725261,0.000395,120]
[423660563,1780283448000,-500836.89906936,0.000395,24]
[423660562,1780283448000,-3542.58633602,0.000395,120]
[423660565,1780283448000,-143234.46808259,0.000395,120]
[423660568,1780283448000,-179.61950112,0.000395,120]
[423660564,1780283448000,-54139.52512734,0.000395,30]
[423660570,1780283448000,-500.0,0.000395,120]
[423660582,1780283448000,-500.0,0.000395,120]
[423660581,1780283448000,-500.0,0.000395,120]
[423660580,1780283448000,-700739.41676587,0.000395,120]
[423660569,1780283448000,-191.17647059,0.000395,120]
[423660567,1780283448000,-500.26886848,0.000395,120]
[423660571,1780283448000,-500.0,0.000395,120]
[423660584,1780283448000,-500.0,0.000395,120]
[423660594,1780283448000,-3598.87,0.000395,120]
[423660586,1780283448000,-500.0,0.000395,120]
[423660583,1780283448000,-500.0,0.000395,120]
[423660579,1780283448000,-500.0,0.000395,120]
[423660578,1780283448000,-500.0,0.000395,120]
[423660577,1780283448000,-500.0,0.000395,120]
[423660573,1780283448000,-500.0,0.000395,120]
[423660575,1780283448000,-500.0,0.000395,120]
[423660574,1780283448000,-500.0,0.000395,120]
[423660572,1780283448000,-500.0,0.000395,120]
[423660576,1780283448000,-500.0,0.000395,120]
[423660639,1780283449000,-2447.84,0.000395,120]
[423660634,1780283449000,-500.0,0.000395,120]
[423660633,1780283449000,-500.0,0.000395,120]
[423660635,1780283449000,-224.47074519,0.000395,120]
[423660632,1780283449000,-500.0,0.000395,120]
[423660650,1780283449000,-2447.84,0.000395,120]
[423660641,1780283449000,-2447.84,0.000395,120]
[423660646,1780283449000,-2447.84,0.000395,120]
[423660644,1780283449000,-2447.84,0.000395,120]
[423660648,1780283449000,-2447.84,0.000395,120]
[423660643,1780283449000,-2447.84,0.000395,120]
[423660638,1780283449000,-2447.84,0.000395,120]
[423660640,1780283449000,-2447.84,0.000395,120]
[423660636,1780283449000,-2447.84,0.000395,120]
[423660625,1780283449000,-2281.16,0.00038356,2]
[423660637,1780283449000,-2447.84,0.000395,120]
[423660630,1780283449000,-205.83108689,0.000395,120]
[423660628,1780283449000,-2281.16,0.00038356,2]
[423660629,1780283449000,-609373.24914153,0.000395,30]
[423660627,1780283449000,-2281.16,0.00038356,2]
[423660621,1780283449000,-5796.66744249,0.00027397,10]
[423660626,1780283449000,-2281.16,0.00038356,2]
[423660624,1780283449000,-580.97975873,0.00038356,2]
[423660623,1780283449000,-1700.18024127,0.00038356,2]
[423660620,1780283449000,-959.37255751,0.00027397,10]
[423660622,1780283449000,-300.15544387,0.00035558,2]
[423660619,1780283449000,-419.17316,0.000395,30]
[423660618,1780283449000,-402.00835186,0.000395,30]
[423660649,1780283449000,-2447.84,0.000395,120]
[423660631,1780283449000,-500.0,0.000395,120]
[423660642,1780283449000,-2447.84,0.000395,120]
[423660655,1780283449000,-2447.84,0.000395,120]
[423660651,1780283449000,-2447.84,0.000395,120]
[423660645,1780283449000,-2447.84,0.000395,120]
[423660677,1780283449000,-500.0,0.000395,120]
[423660679,1780283449000,-800.0,0.000395,120]
[423660680,1780283449000,-800.0,0.000395,120]
[423660681,1780283449000,-800.0,0.000395,120]
[423660676,1780283449000,-500.0,0.000395,120]
[423660668,1780283449000,-500.0,0.000395,120]
[423660671,1780283449000,-500.0,0.000395,120]
[423660667,1780283449000,-500.0,0.000395,120]
[423660672,1780283449000,-500.0,0.000395,120]
[423660670,1780283449000,-500.0,0.000395,120]
[423660669,1780283449000,-500.0,0.000395,120]
[423660666,1780283449000,-500.0,0.000395,120]
[423660674,1780283449000,-500.0,0.000395,120]
[423660675,1780283449000,-500.0,0.000395,120]
[423660678,1780283449000,-613.3809216,0.000395,120]
[423660673,1780283449000,-500.0,0.000395,120]
[423660647,1780283449000,-2447.84,0.000395,120]
[423660664,1780283449000,-500.0,0.000395,120]
[423660657,1780283449000,-2447.84,0.000395,120]
[423660654,1780283449000,-2447.84,0.000395,120]
[423660656,1780283449000,-2447.84,0.000395,120]
[423660652,1780283449000,-2447.84,0.000395,120]
[423660659,1780283449000,-2447.95377252,0.000395,120]
[423660662,1780283449000,-500.0,0.000395,120]
[423660660,1780283449000,-500.0,0.000395,120]
[423660661,1780283449000,-500.0,0.000395,120]
[423660653,1780283449000,-2447.84,0.000395,120]
[423660663,1780283449000,-500.0,0.000395,120]
[423660665,1780283449000,-500.0,0.000395,120]
[423660658,1780283449000,-2447.84,0.000395,120]
[423660706,1780283450000,-1269.48,0.000395,120]
[423660723,1780283450000,-1269.48,0.000395,120]
[423660708,1780283450000,-1269.48,0.000395,120]
[423660711,1780283450000,-1269.48,0.000395,120]